[Event "*** Titled Tuesday Blitz"]
[Site "Chess.com"]
[Date "2020.05.26"]
[Round "8"]
[White "GMSrinath"]
[Black "SerGo055"]
[Result "1-0"]
[WhiteElo "2810"]
[BlackElo "2566"]
[TimeControl "180+1"]
[EndTime "11:40:05 PDT"]
[Termination "GMSrinath won on time"]

1. Nf3 {[%clk 0:03:00.9]} 1... Nf6 {[%clk 0:02:59.1]} 2. c4 {[%clk 0:03:00.3]}
2... c6 {[%clk 0:02:58.1]} 3. e3 {[%clk 0:02:59.4]} 3... d5 {[%clk 0:02:58.4]}
4. b3 {[%clk 0:02:59.3]} 4... Bf5 {[%clk 0:02:57.7]} 5. Bb2 {[%clk 0:02:59.4]}
5... e6 {[%clk 0:02:57.8]} 6. Be2 {[%clk 0:02:59.8]} 6... Nbd7 {[%clk
0:02:57.8]} 7. O-O {[%clk 0:03:00.3]} 7... h6 {[%clk 0:02:58.4]} 8. Nc3 {[%clk
0:02:57.2]} 8... Be7 {[%clk 0:02:57.9]} 9. Rc1 {[%clk 0:02:41.1]} 9... O-O
{[%clk 0:02:54.4]} 10. d4 {[%clk 0:02:41.3]} 10... a5 {[%clk 0:02:50.6]} 11. a3
{[%clk 0:02:40.8]} 11... Ne4 {[%clk 0:02:35.2]} 12. Nxe4 {[%clk 0:02:33.8]}
12... Bxe4 {[%clk 0:02:35]} 13. Bd3 {[%clk 0:02:34.2]} 13... f5 {[%clk
0:02:29.3]} 14. Ne1 {[%clk 0:02:32.5]} 14... Bd6 {[%clk 0:02:21.1]} 15. f3
{[%clk 0:02:22.4]} 15... Bxd3 {[%clk 0:01:52]} 16. Nxd3 {[%clk 0:02:23.3]} 16...
Qh4 {[%clk 0:01:42.5]} 17. f4 {[%clk 0:02:21.7]} 17... Nf6 {[%clk 0:01:41]} 18.
Rf3 {[%clk 0:02:18.8]} 18... Ne4 {[%clk 0:01:28.8]} 19. Rh3 {[%clk 0:02:16.9]}
19... Qe7 {[%clk 0:01:27.2]} 20. c5 {[%clk 0:02:14.6]} 20... Bc7 {[%clk
0:01:27.3]} 21. g4 {[%clk 0:02:14.9]} 21... Rf6 {[%clk 0:01:13.1]} 22. Rc2
{[%clk 0:02:12.8]} 22... Raf8 {[%clk 0:00:57.6]} 23. Rg2 {[%clk 0:02:11.1]}
23... g5 {[%clk 0:00:45.1]} 24. gxf5 {[%clk 0:01:31.3]} 24... exf5 {[%clk
0:00:41.8]} 25. Nf2 {[%clk 0:01:31.9]} 25... g4 {[%clk 0:00:27.1]} 26. Nxe4
{[%clk 0:01:21.7]} 26... Qxe4 {[%clk 0:00:26.7]} 27. Bc3 {[%clk 0:01:22.2]}
27... Qxg2+ {[%clk 0:00:18.4]} 28. Kxg2 {[%clk 0:01:22.1]} 28... gxh3+ {[%clk
0:00:18.9]} 29. Kxh3 {[%clk 0:01:23]} 29... Rg6 {[%clk 0:00:18.4]} 30. Be1
{[%clk 0:01:20.5]} 30... Bd8 {[%clk 0:00:13.9]} 31. Bg3 {[%clk 0:01:20.4]} 31...
h5 {[%clk 0:00:11.8]} 32. Qxh5 {[%clk 0:01:19.3]} 32... Kg7 {[%clk 0:00:11.9]}
33. Kg2 {[%clk 0:01:18.8]} 33... Re8 {[%clk 0:00:12.2]} 34. Qxf5 {[%clk
0:01:16.5]} 34... Rxe3 {[%clk 0:00:09.7]} 35. Qd7+ {[%clk 0:01:16.9]} 35... Be7
{[%clk 0:00:09.3]} 36. f5 {[%clk 0:01:17.1]} 36... Rg5 {[%clk 0:00:06.7]} 37.
Kf2 {[%clk 0:01:16.8]} 37... Re4 {[%clk 0:00:04.5]} 38. Be5+ {[%clk 0:01:16.9]}
38... Kf7 {[%clk 0:00:04.6]} 39. f6 {[%clk 0:01:15.1]} 1-0

[Event "*** Titled Tuesday Blitz"]
[Site "Chess.com"]
[Date "2020.05.26"]
[Round "8"]
[White "tigra"]
[Black "Dinamo81"]
[Result "1/2-1/2"]
[WhiteElo "2750"]
[BlackElo "2631"]
[TimeControl "180+1"]
[EndTime "11:40:09 PDT"]
[Termination "Game drawn by repetition"]

1. Nc3 {[%clk 0:03:00.9]} 1... d5 {[%clk 0:02:54.1]} 2. d4 {[%clk 0:02:59.4]}
2... Nf6 {[%clk 0:02:49.6]} 3. Bg5 {[%clk 0:02:57.5]} 3... Nbd7 {[%clk
0:02:42.9]} 4. Qd3 {[%clk 0:02:56.2]} 4... h6 {[%clk 0:02:37.3]} 5. Bh4 {[%clk
0:02:54.7]} 5... c6 {[%clk 0:02:36.8]} 6. e4 {[%clk 0:02:54.1]} 6... dxe4 {[%clk
0:02:31.4]} 7. Nxe4 {[%clk 0:02:54.2]} 7... Nxe4 {[%clk 0:02:31.5]} 8. Qxe4
{[%clk 0:02:55.1]} 8... Qa5+ {[%clk 0:02:31.6]} 9. c3 {[%clk 0:02:54.4]} 9... g5
{[%clk 0:02:30]} 10. Bg3 {[%clk 0:02:50.5]} 10... f5 {[%clk 0:02:29.8]} 11. Qf3
{[%clk 0:02:24.8]} 11... f4 {[%clk 0:02:17.6]} 12. Bxf4 {[%clk 0:02:13.1]} 12...
gxf4 {[%clk 0:02:18.5]} 13. Qxf4 {[%clk 0:02:14]} 13... Nf6 {[%clk 0:02:15.3]}
14. Nf3 {[%clk 0:02:12.2]} 14... Qf5 {[%clk 0:02:11.2]} 15. Qe3 {[%clk
0:02:11.7]} 15... Nd5 {[%clk 0:01:51.8]} 16. Qd2 {[%clk 0:02:11]} 16... Qf4
{[%clk 0:01:41.7]} 17. Qc2 {[%clk 0:02:08.2]} 17... Bf5 {[%clk 0:01:39.4]} 18.
Bd3 {[%clk 0:02:01.4]} 18... Bxd3 {[%clk 0:01:30]} 19. Qxd3 {[%clk 0:02:02.3]}
19... Rg8 {[%clk 0:01:30.3]} 20. O-O {[%clk 0:02:02]} 20... Qg4 {[%clk
0:01:15.5]} 21. g3 {[%clk 0:02:01.7]} 21... Nf4 {[%clk 0:01:13.9]} 22. Qe3
{[%clk 0:01:50.9]} 22... Nd5 {[%clk 0:01:11.5]} 23. Qd3 {[%clk 0:01:50.6]} 23...
Qg6 {[%clk 0:01:07.2]} 24. Qd2 {[%clk 0:01:45.4]} 24... Bg7 {[%clk 0:01:03.1]}
25. Rfe1 {[%clk 0:01:43.9]} 25... Qf7 {[%clk 0:00:57.3]} 26. Qe2 {[%clk
0:01:42.4]} 26... O-O-O {[%clk 0:00:55.4]} 27. Nh4 {[%clk 0:01:35.2]} 27... Rde8
{[%clk 0:00:46.3]} 28. f4 {[%clk 0:01:30.5]} 28... Bf6 {[%clk 0:00:44]} 29. Ng2
{[%clk 0:01:29.6]} 29... h5 {[%clk 0:00:42.2]} 30. Kf2 {[%clk 0:01:26.8]} 30...
Qg6 {[%clk 0:00:40.4]} 31. Qe6+ {[%clk 0:01:25.7]} 31... Kb8 {[%clk 0:00:39.8]}
32. Qe4 {[%clk 0:01:23.4]} 32... Qxe4 {[%clk 0:00:38.3]} 33. Rxe4 {[%clk
0:01:24.3]} 33... Kc7 {[%clk 0:00:38.3]} 34. Kf3 {[%clk 0:01:19.7]} 34... Kd7
{[%clk 0:00:38.5]} 35. Ne1 {[%clk 0:01:17.4]} 35... e6 {[%clk 0:00:38.8]} 36.
Nd3 {[%clk 0:01:17.4]} 36... b6 {[%clk 0:00:39.3]} 37. Rae1 {[%clk 0:01:17]}
37... Nc7 {[%clk 0:00:35.4]} 38. R4e2 {[%clk 0:01:15.8]} 38... Ref8 {[%clk
0:00:35.1]} 39. Rg2 {[%clk 0:01:14.4]} 39... a5 {[%clk 0:00:34.8]} 40. a4 {[%clk
0:01:13.8]} 40... Nd5 {[%clk 0:00:34.6]} 41. Ke4 {[%clk 0:01:12.7]} 41... Ne7
{[%clk 0:00:34.6]} 42. Kf3 {[%clk 0:01:12.5]} 42... Nf5 {[%clk 0:00:34.8]} 43.
Rge2 {[%clk 0:01:11.3]} 43... Re8 {[%clk 0:00:33]} 44. Rd2 {[%clk 0:01:09.6]}
44... Nd6 {[%clk 0:00:33]} 45. Ne5+ {[%clk 0:01:09.2]} 45... Kc7 {[%clk
0:00:30.9]} 46. Nd3 {[%clk 0:01:09.8]} 46... Rg6 {[%clk 0:00:29.5]} 47. Rde2
{[%clk 0:01:08.5]} 47... Kd7 {[%clk 0:00:29]} 48. Rd2 {[%clk 0:01:08.6]} 48...
Kc7 {[%clk 0:00:26.6]} 49. Rde2 {[%clk 0:01:08.5]} 49... Kd7 {[%clk 0:00:26.9]}
50. Rd2 {[%clk 0:01:08.8]} 50... Kc7 {[%clk 0:00:27.1]} 1/2-1/2

[Event "*** Titled Tuesday Blitz"]
[Site "Chess.com"]
[Date "2020.05.26"]
[Round "8"]
[White "Msb2"]
[Black "Zq1"]
[Result "1-0"]
[WhiteElo "2852"]
[BlackElo "2506"]
[TimeControl "180+1"]
[EndTime "11:40:09 PDT"]
[Termination "Msb2 won by checkmate"]

1. d4 {[%clk 0:03:00.9]} 1... Nf6 {[%clk 0:02:59]} 2. c4 {[%clk 0:03:00.1]} 2...
a6 {[%clk 0:02:59.2]} 3. Nc3 {[%clk 0:02:57.1]} 3... c5 {[%clk 0:02:59.2]} 4. d5
{[%clk 0:02:56.2]} 4... b5 {[%clk 0:02:58.6]} 5. cxb5 {[%clk 0:02:57.1]} 5...
axb5 {[%clk 0:02:58.4]} 6. Nxb5 {[%clk 0:02:58]} 6... Qa5+ {[%clk 0:02:57.2]} 7.
Nc3 {[%clk 0:02:57.9]} 7... Bb7 {[%clk 0:02:57.5]} 8. Bd2 {[%clk 0:02:53.3]}
8... Qb6 {[%clk 0:02:57.1]} 9. e4 {[%clk 0:02:53.7]} 9... e6 {[%clk 0:02:56]}
10. Bc4 {[%clk 0:02:51.8]} 10... Nxe4 {[%clk 0:02:55.3]} 11. Nge2 {[%clk
0:02:29.3]} 11... Nf6 {[%clk 0:02:47.4]} 12. Bg5 {[%clk 0:02:25.9]} 12... Be7
{[%clk 0:02:42.9]} 13. O-O {[%clk 0:02:21.2]} 13... h6 {[%clk 0:02:39.7]} 14.
Bxf6 {[%clk 0:02:18]} 14... Bxf6 {[%clk 0:02:38.3]} 15. Qd3 {[%clk 0:02:18.6]}
15... O-O {[%clk 0:02:27.2]} 16. Ne4 {[%clk 0:02:18.4]} 16... Be7 {[%clk
0:02:19.6]} 17. b3 {[%clk 0:02:14.7]} 17... Na6 {[%clk 0:02:13.3]} 18. a3 {[%clk
0:02:09.6]} 18... Nc7 {[%clk 0:01:50.7]} 19. N2c3 {[%clk 0:02:06.2]} 19... f5
{[%clk 0:01:43]} 20. Ng3 {[%clk 0:02:03.8]} 20... Bf6 {[%clk 0:01:38.8]} 21.
dxe6 {[%clk 0:01:54]} 21... dxe6 {[%clk 0:01:37.8]} 22. Rae1 {[%clk 0:01:33.4]}
22... Bxc3 {[%clk 0:01:27.8]} 23. Qxc3 {[%clk 0:01:34.3]} 23... Nd5 {[%clk
0:01:22.5]} 24. Qe5 {[%clk 0:01:33]} 24... Rxa3 {[%clk 0:00:50.8]} 25. Nh5
{[%clk 0:01:28.4]} 25... Rf7 {[%clk 0:00:36.8]} 26. Qb8+ {[%clk 0:01:05.7]}
26... Kh7 {[%clk 0:00:20.3]} 27. Bxd5 {[%clk 0:01:05.8]} 27... exd5 {[%clk
0:00:19.4]} 28. Re8 {[%clk 0:01:06.7]} 28... Ra8 {[%clk 0:00:17]} 29. Rh8+
{[%clk 0:00:58.9]} 29... Kg6 {[%clk 0:00:16.8]} 30. Nf4+ {[%clk 0:00:59.8]}
30... Kg5 {[%clk 0:00:14.1]} 31. Qe5 {[%clk 0:00:57.4]} 31... Rxh8 {[%clk
0:00:12.2]} 32. h4+ {[%clk 0:00:44.2]} 32... Kxh4 {[%clk 0:00:10.8]} 33. Qe3
{[%clk 0:00:44.3]} 33... d4 {[%clk 0:00:07.1]} 34. Qg3# {[%clk 0:00:44.1]} 1-0

[Event "*** Titled Tuesday Blitz"]
[Site "Chess.com"]
[Date "2020.05.26"]
[Round "8"]
[White "BabyFacedAssasin"]
[Black "binbin239"]
[Result "1/2-1/2"]
[WhiteElo "2257"]
[BlackElo "2394"]
[TimeControl "180+1"]
[EndTime "11:40:09 PDT"]
[Termination "Game drawn by repetition"]

1. e4 {[%clk 0:03:00.9]} 1... c5 {[%clk 0:02:52.5]} 2. Nf3 {[%clk 0:02:59.1]}
2... Nc6 {[%clk 0:02:51.8]} 3. Bb5 {[%clk 0:02:57.8]} 3... g6 {[%clk 0:02:52]}
4. Bxc6 {[%clk 0:02:58.1]} 4... bxc6 {[%clk 0:02:52.4]} 5. d4 {[%clk 0:02:53.6]}
5... Nf6 {[%clk 0:02:48.5]} 6. e5 {[%clk 0:02:48.9]} 6... Nd5 {[%clk 0:02:48.3]}
7. c4 {[%clk 0:02:49.3]} 7... Nb6 {[%clk 0:02:47.6]} 8. dxc5 {[%clk 0:02:40]}
8... Nxc4 {[%clk 0:02:47.4]} 9. Qd4 {[%clk 0:02:38.2]} 9... Ba6 {[%clk
0:02:27.5]} 10. O-O {[%clk 0:02:31.1]} 10... Bg7 {[%clk 0:02:27.7]} 11. Re1
{[%clk 0:02:29.9]} 11... O-O {[%clk 0:02:26.9]} 12. b3 {[%clk 0:02:12.5]} 12...
Nxe5 {[%clk 0:01:55.5]} 13. Nxe5 {[%clk 0:02:08.7]} 13... d6 {[%clk 0:01:55.1]}
14. f4 {[%clk 0:01:07.8]} 14... dxe5 {[%clk 0:01:52.8]} 15. Qxd8 {[%clk
0:01:07.8]} 15... Raxd8 {[%clk 0:01:51.1]} 16. fxe5 {[%clk 0:01:07.5]} 16...
Bxe5 {[%clk 0:01:38.1]} 17. Rxe5 {[%clk 0:01:08.4]} 17... Rd1+ {[%clk
0:01:38.3]} 18. Kf2 {[%clk 0:01:08.7]} 18... Rxc1 {[%clk 0:01:38.6]} 19. Re1
{[%clk 0:01:09.3]} 19... Rc2+ {[%clk 0:01:33.3]} 20. Kg1 {[%clk 0:01:03.7]}
20... Rd8 {[%clk 0:01:28.3]} 21. Na3 {[%clk 0:01:02.4]} 21... Rxc5 {[%clk
0:01:26.3]} 22. Rxe7 {[%clk 0:00:59.4]} 22... Ra5 {[%clk 0:01:03.6]} 23. Nc4
{[%clk 0:00:54.4]} 23... Bxc4 {[%clk 0:00:51.2]} 24. bxc4 {[%clk 0:00:55.3]}
24... Rd2 {[%clk 0:00:49.7]} 25. Rf1 {[%clk 0:00:46.8]} 25... Raxa2 {[%clk
0:00:41.2]} 26. Rfxf7 {[%clk 0:00:45.4]} 26... Rxg2+ {[%clk 0:00:37.9]} 27. Kf1
{[%clk 0:00:43.1]} 27... Rxh2 {[%clk 0:00:38]} 28. Kg1 {[%clk 0:00:36.6]} 28...
Rhg2+ {[%clk 0:00:36]} 29. Kf1 {[%clk 0:00:31.2]} 29... Rh2 {[%clk 0:00:35.9]}
30. Kg1 {[%clk 0:00:31]} 30... Rhe2 {[%clk 0:00:35.8]} 31. Rg7+ {[%clk
0:00:30.1]} 31... Kf8 {[%clk 0:00:35.8]} 32. Rgf7+ {[%clk 0:00:30.4]} 32... Kg8
{[%clk 0:00:35.7]} 33. Rg7+ {[%clk 0:00:30.7]} 33... Kf8 {[%clk 0:00:36.2]} 34.
Rgf7+ {[%clk 0:00:31]} 34... Kg8 {[%clk 0:00:36.8]} 1/2-1/2

[Event "*** Titled Tuesday Blitz"]
[Site "Chess.com"]
[Date "2020.05.26"]
[Round "8"]
[White "MilanJeremic"]
[Black "XxPetroffsxX"]
[Result "1/2-1/2"]
[WhiteElo "2229"]
[BlackElo "1941"]
[TimeControl "180+1"]
[EndTime "11:40:10 PDT"]
[Termination "Game drawn by repetition"]

1. d4 {[%clk 0:02:57.5]} 1... d5 {[%clk 0:02:58.8]} 2. Nf3 {[%clk 0:02:56.7]}
2... c5 {[%clk 0:02:57.5]} 3. e3 {[%clk 0:02:55.9]} 3... e6 {[%clk 0:02:57.2]}
4. g3 {[%clk 0:02:55.6]} 4... Nc6 {[%clk 0:02:56.9]} 5. Bg2 {[%clk 0:02:55.5]}
5... cxd4 {[%clk 0:02:57]} 6. exd4 {[%clk 0:02:55]} 6... Nf6 {[%clk 0:02:56.4]}
7. c3 {[%clk 0:02:55]} 7... Bd6 {[%clk 0:02:55.7]} 8. O-O {[%clk 0:02:54.5]}
8... O-O {[%clk 0:02:55.9]} 9. Bg5 {[%clk 0:02:54.2]} 9... h6 {[%clk 0:02:53.1]}
10. Bxf6 {[%clk 0:02:54.1]} 10... Qxf6 {[%clk 0:02:52.7]} 11. Nbd2 {[%clk
0:02:53.9]} 11... b5 {[%clk 0:02:52.1]} 12. a3 {[%clk 0:02:53]} 12... a5 {[%clk
0:02:51.3]} 13. Re1 {[%clk 0:02:52.6]} 13... Rb8 {[%clk 0:02:46]} 14. Nf1 {[%clk
0:02:52.1]} 14... Qe7 {[%clk 0:02:39.4]} 15. Ne3 {[%clk 0:02:49.4]} 15... Qa7
{[%clk 0:02:34.6]} 16. h4 {[%clk 0:02:44.2]} 16... Ba6 {[%clk 0:02:29.6]} 17.
Ng4 {[%clk 0:02:43.3]} 17... Rfe8 {[%clk 0:02:26.9]} 18. Nfe5 {[%clk 0:02:40]}
18... Nxe5 {[%clk 0:02:24.7]} 19. Nxe5 {[%clk 0:02:39.5]} 19... Bxe5 {[%clk
0:02:23.9]} 20. Rxe5 {[%clk 0:02:39]} 20... Bb7 {[%clk 0:02:11.3]} 21. Qe2
{[%clk 0:02:35.5]} 21... Bc6 {[%clk 0:02:09.1]} 22. f4 {[%clk 0:02:32.7]} 22...
Bd7 {[%clk 0:02:07.3]} 23. Kh2 {[%clk 0:02:30.1]} 23... Qb6 {[%clk 0:02:00.7]}
24. Rf1 {[%clk 0:02:26.1]} 24... b4 {[%clk 0:01:59.6]} 25. axb4 {[%clk
0:02:25.7]} 25... axb4 {[%clk 0:01:59.1]} 26. g4 {[%clk 0:02:22.7]} 26... Bb5
{[%clk 0:01:58.3]} 27. Qe1 {[%clk 0:02:17.2]} 27... Bxf1 {[%clk 0:01:57.9]} 28.
Qxf1 {[%clk 0:02:15.8]} 28... bxc3 {[%clk 0:01:57.4]} 29. bxc3 {[%clk
0:02:15.8]} 29... Qb1 {[%clk 0:01:53.8]} 30. Re1 {[%clk 0:02:01.5]} 30... Qc2
{[%clk 0:01:49.5]} 31. Qf3 {[%clk 0:01:58.4]} 31... Rb2 {[%clk 0:01:45.3]} 32.
g5 {[%clk 0:01:54.7]} 32... h5 {[%clk 0:01:42]} 33. f5 {[%clk 0:01:51.6]} 33...
Rf8 {[%clk 0:01:35.3]} 34. Rg1 {[%clk 0:01:47.2]} 34... Rc8 {[%clk 0:01:29.3]}
35. Qxh5 {[%clk 0:01:43.1]} 35... Qxf5 {[%clk 0:01:18.2]} 36. Kh1 {[%clk
0:01:40.5]} 36... Rxg2 {[%clk 0:01:13.7]} 37. Rxg2 {[%clk 0:01:39.5]} 37... Qf1+
{[%clk 0:01:11.7]} 38. Kh2 {[%clk 0:01:37.5]} 38... Rxc3 {[%clk 0:01:09.4]} 39.
Qg4 {[%clk 0:01:34]} 39... Rc1 {[%clk 0:01:01]} 40. g6 {[%clk 0:01:29.9]} 40...
Qh1+ {[%clk 0:00:58.7]} 41. Kg3 {[%clk 0:01:29.8]} 41... Rc3+ {[%clk 0:00:58.4]}
42. Kf4 {[%clk 0:01:29.8]} 42... Qf1+ {[%clk 0:00:54.5]} 43. Ke5 {[%clk
0:01:29.7]} 43... Re3+ {[%clk 0:00:51.8]} 44. Kd6 {[%clk 0:01:28.3]} 44... Qa6+
{[%clk 0:00:48.9]} 45. Kd7 {[%clk 0:01:24.1]} 45... Qb7+ {[%clk 0:00:47.3]} 46.
Kd6 {[%clk 0:01:24.2]} 46... Qb8+ {[%clk 0:00:44.3]} 47. Kd7 {[%clk 0:01:23.6]}
47... f5 {[%clk 0:00:40.5]} 48. Qh5 {[%clk 0:01:19.1]} 48... Qb7+ {[%clk
0:00:38.4]} 49. Kd6 {[%clk 0:01:18.6]} 49... Qb6+ {[%clk 0:00:37]} 50. Kd7
{[%clk 0:01:18.6]} 50... Qb7+ {[%clk 0:00:35.9]} 51. Kd6 {[%clk 0:01:18.7]}
51... Qb6+ {[%clk 0:00:35.1]} 52. Kd7 {[%clk 0:01:18.2]} 52... Qb7+ {[%clk
0:00:34]} 1/2-1/2

[Event "*** Titled Tuesday Blitz"]
[Site "Chess.com"]
[Date "2020.05.26"]
[Round "8"]
[White "ZarinaShafigullina"]
[Black "Luibov_AN"]
[Result "1-0"]
[WhiteElo "2347"]
[BlackElo "2067"]
[TimeControl "180+1"]
[EndTime "11:40:12 PDT"]
[Termination "ZarinaShafigullina won by resignation"]

1. d4 {[%clk 0:03:00.9]} 1... g6 {[%clk 0:03:00.2]} 2. Nf3 {[%clk 0:03:01.8]}
2... Bg7 {[%clk 0:03:00.6]} 3. g3 {[%clk 0:03:02.3]} 3... c5 {[%clk 0:03:01]} 4.
c3 {[%clk 0:02:56.6]} 4... cxd4 {[%clk 0:03:00.2]} 5. cxd4 {[%clk 0:02:57.1]}
5... Nc6 {[%clk 0:03:00.6]} 6. Nc3 {[%clk 0:02:57.7]} 6... d6 {[%clk 0:03:00.8]}
7. Bg2 {[%clk 0:02:57.1]} 7... Nf6 {[%clk 0:03:00.5]} 8. O-O {[%clk 0:02:56.7]}
8... O-O {[%clk 0:02:59.7]} 9. e4 {[%clk 0:02:56.9]} 9... Qa5 {[%clk 0:02:54.7]}
10. d5 {[%clk 0:02:56.5]} 10... Nb8 {[%clk 0:02:54.1]} 11. Bd2 {[%clk
0:02:52.5]} 11... Nbd7 {[%clk 0:02:49]} 12. a3 {[%clk 0:02:50.8]} 12... Qd8
{[%clk 0:02:43.8]} 13. b4 {[%clk 0:02:50.2]} 13... a6 {[%clk 0:02:44.1]} 14. Rc1
{[%clk 0:02:49.2]} 14... Nb6 {[%clk 0:02:41.6]} 15. Qb3 {[%clk 0:02:47.7]} 15...
Bd7 {[%clk 0:02:35]} 16. Rfd1 {[%clk 0:02:46.6]} 16... Bg4 {[%clk 0:02:25.6]}
17. a4 {[%clk 0:02:43.9]} 17... Nbd7 {[%clk 0:02:25]} 18. h3 {[%clk 0:02:38]}
18... Bxf3 {[%clk 0:02:25]} 19. Bxf3 {[%clk 0:02:37.7]} 19... Ne5 {[%clk
0:02:24.2]} 20. Be2 {[%clk 0:02:37.6]} 20... Rc8 {[%clk 0:02:20.1]} 21. f4
{[%clk 0:02:36.3]} 21... Qb6+ {[%clk 0:02:13.7]} 22. Kg2 {[%clk 0:02:30.8]}
22... Ned7 {[%clk 0:02:12.2]} 23. a5 {[%clk 0:02:28]} 23... Qa7 {[%clk
0:02:11.7]} 24. Be1 {[%clk 0:02:22.1]} 24... Rxc3 {[%clk 0:01:59]} 25. Qxc3
{[%clk 0:02:02.4]} 25... Nxe4 {[%clk 0:01:57.3]} 26. Qf3 {[%clk 0:02:01.8]}
26... f5 {[%clk 0:01:38.4]} 27. Rc7 {[%clk 0:01:45.5]} 27... Rd8 {[%clk
0:01:36.5]} 28. Bd3 {[%clk 0:01:35.6]} 28... Qd4 {[%clk 0:01:23]} 29. Bxe4
{[%clk 0:01:19.1]} 29... fxe4 {[%clk 0:01:22.8]} 30. Qe2 {[%clk 0:01:15.6]}
30... Qf6 {[%clk 0:01:16.4]} 31. Rxb7 {[%clk 0:00:59.4]} 31... e6 {[%clk
0:01:01.6]} 32. Qxe4 {[%clk 0:00:58.3]} 32... exd5 {[%clk 0:01:00.3]} 33. Qxd5+
{[%clk 0:00:57.7]} 33... Kh8 {[%clk 0:01:00.6]} 34. Rc7 {[%clk 0:00:52.3]} 34...
Qb2+ {[%clk 0:00:58.9]} 35. Qd2 {[%clk 0:00:46.2]} 35... Qb3 {[%clk 0:00:53.1]}
36. Qd3 {[%clk 0:00:40.4]} 36... Qb2+ {[%clk 0:00:46.2]} 37. Rc2 {[%clk
0:00:39.9]} 37... Qf6 {[%clk 0:00:43.1]} 38. Bc3 {[%clk 0:00:39.9]} 1-0

[Event "*** Titled Tuesday Blitz"]
[Site "Chess.com"]
[Date "2020.05.26"]
[Round "8"]
[White "ChronicUnhappiness"]
[Black "SiddharthGMJagadeesh"]
[Result "0-1"]
[WhiteElo "2278"]
[BlackElo "2417"]
[TimeControl "180+1"]
[EndTime "11:40:13 PDT"]
[Termination "SiddharthGMJagadeesh won by resignation"]

1. c4 {[%clk 0:03:00.9]} 1... e6 {[%clk 0:02:59.8]} 2. Nf3 {[%clk 0:03:00]} 2...
d5 {[%clk 0:03:00.7]} 3. e3 {[%clk 0:03:00]} 3... Nf6 {[%clk 0:03:00.9]} 4. Nc3
{[%clk 0:03:00.1]} 4... Be7 {[%clk 0:03:00.6]} 5. b3 {[%clk 0:02:59.5]} 5... O-O
{[%clk 0:03:00.5]} 6. Bb2 {[%clk 0:02:59.6]} 6... c5 {[%clk 0:03:00.8]} 7. cxd5
{[%clk 0:02:58.4]} 7... exd5 {[%clk 0:03:01.7]} 8. d4 {[%clk 0:02:52.5]} 8...
Nc6 {[%clk 0:03:01]} 9. dxc5 {[%clk 0:02:47.2]} 9... Bxc5 {[%clk 0:03:00]} 10.
Be2 {[%clk 0:02:29.7]} 10... Re8 {[%clk 0:02:58.3]} 11. O-O {[%clk 0:02:28.8]}
11... a6 {[%clk 0:02:53.8]} 12. Rc1 {[%clk 0:02:27.8]} 12... Ba7 {[%clk
0:02:53.4]} 13. Na4 {[%clk 0:02:01]} 13... Bg4 {[%clk 0:02:51.6]} 14. Nc5 {[%clk
0:01:45.6]} 14... Bxc5 {[%clk 0:02:35]} 15. Rxc5 {[%clk 0:01:44.5]} 15... Ne4
{[%clk 0:02:34.7]} 16. Rxd5 {[%clk 0:01:39.6]} 16... Qe7 {[%clk 0:02:33.1]} 17.
h3 {[%clk 0:01:33.8]} 17... Be6 {[%clk 0:02:23.6]} 18. Rd3 {[%clk 0:01:19.4]}
18... Rad8 {[%clk 0:02:19.2]} 19. Nd4 {[%clk 0:01:14.5]} 19... Nb4 {[%clk
0:02:15.8]} 20. Ba3 {[%clk 0:01:04.2]} 20... Bc8 {[%clk 0:01:52.6]} 21. Qe1
{[%clk 0:00:45.4]} 21... Nxd3 {[%clk 0:01:43.9]} 22. Bxe7 {[%clk 0:00:43.1]}
22... Nxe1 {[%clk 0:01:44.4]} 23. Bxd8 {[%clk 0:00:39.9]} 23... Nxg2 {[%clk
0:01:44.9]} 24. Bb6 {[%clk 0:00:29.4]} 24... Bxh3 {[%clk 0:01:42.4]} 25. Kh2
{[%clk 0:00:28.9]} 25... Nxe3 {[%clk 0:01:31.9]} 26. fxe3 {[%clk 0:00:27.8]}
26... Bxf1 {[%clk 0:01:31.5]} 27. Bxf1 {[%clk 0:00:28.7]} 27... Nc3 {[%clk
0:01:24.8]} 28. Nf5 {[%clk 0:00:21]} 28... Re5 {[%clk 0:01:18.5]} 29. Bh3 {[%clk
0:00:17.3]} 29... Nxa2 {[%clk 0:01:15]} 30. Bd4 {[%clk 0:00:17.3]} 30... Rd5
{[%clk 0:01:02.2]} 31. Bg2 {[%clk 0:00:16]} 31... Rxf5 {[%clk 0:01:01]} 32. Bxb7
{[%clk 0:00:14.8]} 32... Rb5 {[%clk 0:00:59]} 33. Bxa6 {[%clk 0:00:13.1]} 33...
Rxb3 {[%clk 0:00:58.2]} 34. Bc4 {[%clk 0:00:14]} 34... Ra3 {[%clk 0:00:58.5]}
35. Kg3 {[%clk 0:00:13.1]} 35... Nb4 {[%clk 0:00:54.2]} 36. Bc5 {[%clk
0:00:10.5]} 36... Rc3 {[%clk 0:00:54.2]} 37. Bxf7+ {[%clk 0:00:09.1]} 37... Kxf7
{[%clk 0:00:55.1]} 38. Bxb4 {[%clk 0:00:09.8]} 38... Rxe3+ {[%clk 0:00:55.7]}
39. Kf4 {[%clk 0:00:10.4]} 39... Re6 {[%clk 0:00:55.7]} 0-1

[Event "*** Titled Tuesday Blitz"]
[Site "Chess.com"]
[Date "2020.05.26"]
[Round "8"]
[White "Makswolf200817"]
[Black "Efremov_Vlad"]
[Result "1-0"]
[WhiteElo "2382"]
[BlackElo "2157"]
[TimeControl "180+1"]
[EndTime "11:40:13 PDT"]
[Termination "Makswolf200817 won on time"]

1. Nf3 {[%clk 0:03:00.9]} 1... d5 {[%clk 0:02:59.3]} 2. e3 {[%clk 0:03:00.2]}
2... Nf6 {[%clk 0:02:59.1]} 3. c4 {[%clk 0:02:55.4]} 3... e6 {[%clk 0:02:57.9]}
4. Nc3 {[%clk 0:02:54.1]} 4... b6 {[%clk 0:02:57.6]} 5. cxd5 {[%clk 0:02:53.1]}
5... Nxd5 {[%clk 0:02:55.1]} 6. b3 {[%clk 0:02:45.6]} 6... Bb7 {[%clk
0:02:54.2]} 7. Bb2 {[%clk 0:02:45.2]} 7... c5 {[%clk 0:02:40.8]} 8. Qb1 {[%clk
0:02:40.9]} 8... Nxc3 {[%clk 0:02:26.7]} 9. Bxc3 {[%clk 0:02:40.2]} 9... f6
{[%clk 0:02:09.9]} 10. Bd3 {[%clk 0:02:27.8]} 10... f5 {[%clk 0:01:25.2]} 11.
Ne5 {[%clk 0:02:08.3]} 11... Be7 {[%clk 0:01:18]} 12. Bb5+ {[%clk 0:02:06.5]}
12... Kf8 {[%clk 0:01:14.2]} 13. Bc4 {[%clk 0:01:59.6]} 13... Bd5 {[%clk
0:01:03.1]} 14. Rg1 {[%clk 0:01:44.3]} 14... Bf6 {[%clk 0:00:56.1]} 15. g4
{[%clk 0:01:40.5]} 15... Bxc4 {[%clk 0:00:53.4]} 16. bxc4 {[%clk 0:01:38.2]}
16... Bxe5 {[%clk 0:00:20.1]} 17. Bxe5 {[%clk 0:01:37.4]} 17... Nc6 {[%clk
0:00:20.7]} 18. Bc3 {[%clk 0:01:07.3]} 18... Qg5 {[%clk 0:00:19.6]} 19. Qb2
{[%clk 0:01:00.9]} 19... Re8 {[%clk 0:00:14.6]} 20. O-O-O {[%clk 0:00:58.9]}
20... e5 {[%clk 0:00:12]} 21. gxf5 {[%clk 0:00:56.5]} 21... Qxf5 {[%clk
0:00:12.9]} 22. f4 {[%clk 0:00:56.3]} 22... Rg8 {[%clk 0:00:07.6]} 23. fxe5
{[%clk 0:00:55.5]} 23... Nxe5 {[%clk 0:00:07.6]} 24. Rdf1 {[%clk 0:00:44.4]}
24... Nd3+ {[%clk 0:00:07.3]} 25. Kc2 {[%clk 0:00:41]} 25... Nb4+ {[%clk
0:00:02.9]} 26. Kd1 {[%clk 0:00:34.4]} 1-0